[Event "*** Titled Tuesday Blitz"]
[Site "Chess.com"]
[Date "2019.07.02"]
[Round "10"]
[White "vanea_03"]
[Black "KamilPlichta"]
[Result "1/2-1/2"]
[WhiteElo "2667"]
[BlackElo "2774"]
[TimeControl "180+2"]
[EndTime "15:18:15 PDT"]
[Termination "Game drawn - insufficient material"]

1. d4 {[%clk 0:03:01.9]} 1... g6 {[%clk 0:03:00.6]} 2. e4 {[%clk 0:03:02.2]}
2... Bg7 {[%clk 0:03:02.1]} 3. Nf3 {[%clk 0:03:03.6]} 3... c5 {[%clk 0:03:03.3]}
4. c3 {[%clk 0:03:04.6]} 4... Qa5 {[%clk 0:03:03.3]} 5. Nbd2 {[%clk 0:03:00]}
5... cxd4 {[%clk 0:03:03.4]} 6. cxd4 {[%clk 0:03:01.9]} 6... Nf6 {[%clk
0:03:04.4]} 7. Bd3 {[%clk 0:02:58.7]} 7... d5 {[%clk 0:03:05.7]} 8. e5 {[%clk
0:02:58.2]} 8... Ne4 {[%clk 0:03:07.2]} 9. O-O {[%clk 0:02:59.3]} 9... Nxd2
{[%clk 0:03:07.5]} 10. Bxd2 {[%clk 0:03:00]} 10... Qd8 {[%clk 0:03:08.3]} 11. b4
{[%clk 0:02:41.8]} 11... O-O {[%clk 0:03:08.8]} 12. b5 {[%clk 0:02:42.1]} 12...
Bg4 {[%clk 0:03:09]} 13. h3 {[%clk 0:02:43.2]} 13... Bxf3 {[%clk 0:03:10.2]} 14.
Qxf3 {[%clk 0:02:45]} 14... e6 {[%clk 0:03:12.1]} 15. Qe2 {[%clk 0:02:40.4]}
15... Nd7 {[%clk 0:03:12.3]} 16. a4 {[%clk 0:02:41.3]} 16... Qh4 {[%clk
0:03:11.2]} 17. Be3 {[%clk 0:02:39.7]} 17... Bh6 {[%clk 0:03:11.1]} 18. Rac1
{[%clk 0:02:29.2]} 18... Rfc8 {[%clk 0:03:11.4]} 19. Kh2 {[%clk 0:02:26.6]}
19... Bxe3 {[%clk 0:03:09.5]} 20. fxe3 {[%clk 0:02:26.1]} 20... Qd8 {[%clk
0:02:57.2]} 21. Qd2 {[%clk 0:02:23.6]} 21... Rxc1 {[%clk 0:02:57.3]} 22. Rxc1
{[%clk 0:02:25.5]} 22... Rc8 {[%clk 0:02:58.7]} 23. Rxc8 {[%clk 0:02:23.3]}
23... Qxc8 {[%clk 0:02:59.5]} 24. a5 {[%clk 0:02:23.8]} 24... b6 {[%clk
0:02:58.4]} 25. a6 {[%clk 0:02:21.8]} 25... f6 {[%clk 0:02:58.5]} 26. exf6
{[%clk 0:02:11.2]} 26... Qc7+ {[%clk 0:02:59.5]} 27. Kg1 {[%clk 0:02:08.4]}
27... Nxf6 {[%clk 0:03:00.4]} 28. Qf2 {[%clk 0:02:07]} 28... Kg7 {[%clk
0:02:59.4]} 29. g3 {[%clk 0:02:05.9]} 29... Qc3 {[%clk 0:02:57.4]} 30. Qe2
{[%clk 0:02:03]} 30... Ne8 {[%clk 0:02:55.3]} 31. Kf2 {[%clk 0:01:54.8]} 31...
Nd6 {[%clk 0:02:56.5]} 32. h4 {[%clk 0:01:51.4]} 32... Kf6 {[%clk 0:02:38]} 33.
g4 {[%clk 0:01:47.3]} 33... h6 {[%clk 0:02:30.7]} 34. Qf3+ {[%clk 0:01:36.5]}
34... Kg7 {[%clk 0:02:22.4]} 35. Qf4 {[%clk 0:01:26.2]} 35... Nf7 {[%clk
0:02:23.4]} 36. Be2 {[%clk 0:01:22.1]} 36... e5 {[%clk 0:02:22.5]} 37. dxe5
{[%clk 0:01:20.6]} 37... Qxe5 {[%clk 0:02:16.9]} 38. Bd3 {[%clk 0:01:10.4]}
38... g5 {[%clk 0:02:06.9]} 39. hxg5 {[%clk 0:01:07.9]} 39... hxg5 {[%clk
0:02:07.7]} 40. Qf5 {[%clk 0:01:00]} 40... Qxf5+ {[%clk 0:02:04.4]} 41. Bxf5
{[%clk 0:01:01.9]} 41... Kf6 {[%clk 0:02:03.5]} 42. Ke2 {[%clk 0:00:54.8]} 42...
Nd6 {[%clk 0:02:03.4]} 43. Bd7 {[%clk 0:00:54.9]} 43... Ke5 {[%clk 0:02:03.4]}
44. Kd3 {[%clk 0:00:54.8]} 44... Ne4 {[%clk 0:02:01.9]} 45. Bf5 {[%clk
0:00:53.4]} 45... Nc5+ {[%clk 0:02:01.9]} 46. Kc3 {[%clk 0:00:54.5]} 46... Ne4+
{[%clk 0:01:58.6]} 47. Kd3 {[%clk 0:00:55.1]} 47... Nf6 {[%clk 0:01:54.5]} 48.
Kc3 {[%clk 0:00:55.7]} 48... Ng8 {[%clk 0:01:16.6]} 49. Kd3 {[%clk 0:00:46.5]}
49... Nh6 {[%clk 0:01:05.9]} 50. Bc8 {[%clk 0:00:44.3]} 50... Nf7 {[%clk
0:01:05.9]} 51. Bf5 {[%clk 0:00:44.9]} 51... Kd6 {[%clk 0:01:03.6]} 52. Kd4
{[%clk 0:00:44.6]} 52... Ne5 {[%clk 0:01:04.4]} 53. e4 {[%clk 0:00:40.3]} 53...
Nf3+ {[%clk 0:00:52.1]} 54. Ke3 {[%clk 0:00:40.5]} 54... dxe4 {[%clk 0:00:53]}
55. Kxe4 {[%clk 0:00:38.8]} 55... Nh4 {[%clk 0:00:48]} 56. Bc8 {[%clk
0:00:31.7]} 56... Ng6 {[%clk 0:00:44.7]} 57. Bf5 {[%clk 0:00:32.5]} 57... Ne7
{[%clk 0:00:45.3]} 58. Bh7 {[%clk 0:00:31.4]} 58... Kc5 {[%clk 0:00:42.9]} 59.
Ke5 {[%clk 0:00:32.1]} 59... Kxb5 {[%clk 0:00:42.4]} 60. Kf6 {[%clk 0:00:31.6]}
60... Nd5+ {[%clk 0:00:42]} 61. Kxg5 {[%clk 0:00:31.6]} 61... Kxa6 {[%clk
0:00:39.2]} 62. Kf5 {[%clk 0:00:26.9]} 62... Kb5 {[%clk 0:00:35.5]} 63. g5
{[%clk 0:00:27.4]} 63... Kc5 {[%clk 0:00:31]} 64. Ke5 {[%clk 0:00:26.9]} 64...
Ne7 {[%clk 0:00:29.4]} 65. Ke6 {[%clk 0:00:24.8]} 65... Nd5 {[%clk 0:00:30.3]}
66. Be4 {[%clk 0:00:23.9]} 66... Nf4+ {[%clk 0:00:27.2]} 67. Kf5 {[%clk
0:00:19.7]} 67... Nh5 {[%clk 0:00:25.8]} 68. Bf3 {[%clk 0:00:18.4]} 68... Ng7+
{[%clk 0:00:25.6]} 69. Kf6 {[%clk 0:00:19.3]} 69... Ne8+ {[%clk 0:00:26.9]} 70.
Ke7 {[%clk 0:00:20.1]} 70... Ng7 {[%clk 0:00:27.1]} 71. Kf6 {[%clk 0:00:18.9]}
71... Ne8+ {[%clk 0:00:27.2]} 72. Kf7 {[%clk 0:00:20.3]} 72... Nd6+ {[%clk
0:00:27.9]} 73. Ke6 {[%clk 0:00:21.3]} 73... a5 {[%clk 0:00:25.8]} 74. g6 {[%clk
0:00:22.3]} 74... Ne8 {[%clk 0:00:25.6]} 75. Ke7 {[%clk 0:00:22.4]} 75... Ng7
{[%clk 0:00:26.4]} 76. Kf7 {[%clk 0:00:14.1]} 76... a4 {[%clk 0:00:27.6]} 77.
Kxg7 {[%clk 0:00:13.5]} 77... a3 {[%clk 0:00:28.8]} 78. Kh7 {[%clk 0:00:09.7]}
78... a2 {[%clk 0:00:27.6]} 79. g7 {[%clk 0:00:11.4]} 79... a1=Q {[%clk
0:00:29]} 80. g8=Q {[%clk 0:00:13.3]} 80... Qf6 {[%clk 0:00:25.2]} 81. Qd5+
{[%clk 0:00:11.9]} 81... Kb4 {[%clk 0:00:26.6]} 82. Be4 {[%clk 0:00:11.6]} 82...
b5 {[%clk 0:00:24.9]} 83. Bd3 {[%clk 0:00:09.3]} 83... Qe7+ {[%clk 0:00:21.9]}
84. Kg6 {[%clk 0:00:09.7]} 84... Qc5 {[%clk 0:00:23.2]} 85. Qe4+ {[%clk
0:00:09.5]} 85... Kc3 {[%clk 0:00:22.5]} 86. Be2 {[%clk 0:00:10]} 86... b4
{[%clk 0:00:22.4]} 87. Qd3+ {[%clk 0:00:09.7]} 87... Kb2 {[%clk 0:00:23.7]} 88.
Qd2+ {[%clk 0:00:10.2]} 88... Ka3 {[%clk 0:00:22.8]} 89. Bd1 {[%clk 0:00:09.6]}
89... b3 {[%clk 0:00:17.7]} 90. Bxb3 {[%clk 0:00:10.6]} 90... Qb6+ {[%clk
0:00:18.8]} 91. Kf5 {[%clk 0:00:10.5]} 91... Qxb3 {[%clk 0:00:20]} 92. Qf4
{[%clk 0:00:11.5]} 92... Qc2+ {[%clk 0:00:19.9]} 93. Qe4 {[%clk 0:00:12.6]}
93... Qxe4+ {[%clk 0:00:20.8]} 94. Kxe4 {[%clk 0:00:14.5]} 1/2-1/2

[Event "*** Titled Tuesday Blitz"]
[Site "Chess.com"]
[Date "2019.07.02"]
[Round "10"]
[White "WPWPWP-2015"]
[Black "andrzej"]
[Result "0-1"]
[WhiteElo "2377"]
[BlackElo "2323"]
[TimeControl "180+2"]
[EndTime "15:18:35 PDT"]
[Termination "andrzej won by resignation"]

1. e4 {[%clk 0:03:01.9]} 1... c5 {[%clk 0:03:00.5]} 2. Nf3 {[%clk 0:03:01.8]}
2... e6 {[%clk 0:03:01.6]} 3. d4 {[%clk 0:03:00.9]} 3... cxd4 {[%clk 0:03:03]}
4. Nxd4 {[%clk 0:03:01.8]} 4... d6 {[%clk 0:03:04.5]} 5. Nc3 {[%clk 0:02:59.7]}
5... a6 {[%clk 0:03:05.5]} 6. Be3 {[%clk 0:02:59.2]} 6... b5 {[%clk 0:03:06]} 7.
a4 {[%clk 0:02:56.2]} 7... b4 {[%clk 0:03:06]} 8. Na2 {[%clk 0:02:57.4]} 8...
Nf6 {[%clk 0:02:59.6]} 9. Bd3 {[%clk 0:02:57.2]} 9... Bb7 {[%clk 0:02:59.8]} 10.
f3 {[%clk 0:02:58]} 10... d5 {[%clk 0:02:44.4]} 11. e5 {[%clk 0:02:58]} 11...
Nfd7 {[%clk 0:02:45.1]} 12. f4 {[%clk 0:02:56.3]} 12... Bc5 {[%clk 0:02:41.8]}
13. c3 {[%clk 0:02:42.9]} 13... bxc3 {[%clk 0:02:27.8]} 14. bxc3 {[%clk
0:02:43.6]} 14... Qb6 {[%clk 0:02:06.2]} 15. Rb1 {[%clk 0:02:40.9]} 15... Qa7
{[%clk 0:02:07.7]} 16. Qb3 {[%clk 0:02:15.8]} 16... Bc6 {[%clk 0:01:45.4]} 17.
Nb4 {[%clk 0:02:12.2]} 17... Qc7 {[%clk 0:01:33.6]} 18. O-O {[%clk 0:01:48.9]}
18... O-O {[%clk 0:01:33.6]} 19. Rf3 {[%clk 0:01:41.7]} 19... a5 {[%clk
0:01:08.4]} 20. Nbc2 {[%clk 0:01:00.7]} 20... Na6 {[%clk 0:01:01.4]} 21. Bb5
{[%clk 0:00:43.4]} 21... Bxb5 {[%clk 0:00:36.6]} 22. axb5 {[%clk 0:00:42.4]}
22... Nab8 {[%clk 0:00:36.3]} 23. Qb2 {[%clk 0:00:14.9]} 23... Nb6 {[%clk
0:00:35.8]} 24. Qc1 {[%clk 0:00:15.6]} 24... a4 {[%clk 0:00:33.1]} 25. Bf2
{[%clk 0:00:15.7]} 25... a3 {[%clk 0:00:31.8]} 26. Qd1 {[%clk 0:00:15.8]} 26...
a2 {[%clk 0:00:31.2]} 27. Ra1 {[%clk 0:00:17.1]} 27... Nc4 {[%clk 0:00:31.4]}
28. Rh3 {[%clk 0:00:16]} 28... g6 {[%clk 0:00:17.3]} 29. Bh4 {[%clk 0:00:15.9]}
29... Be7 {[%clk 0:00:13.6]} 30. Bxe7 {[%clk 0:00:16]} 30... Qxe7 {[%clk
0:00:15.5]} 31. Qg4 {[%clk 0:00:16.1]} 31... Nd2 {[%clk 0:00:11.2]} 32. Nb4
{[%clk 0:00:16.4]} 32... Ne4 {[%clk 0:00:11.1]} 33. Qd1 {[%clk 0:00:06.6]} 33...
Rc8 {[%clk 0:00:09.9]} 34. Qb3 {[%clk 0:00:07]} 34... Qc5 {[%clk 0:00:09.1]} 35.
Rxa2 {[%clk 0:00:06.6]} 35... Rxa2 {[%clk 0:00:07.7]} 36. Nxa2 {[%clk
0:00:07.6]} 36... Nd7 {[%clk 0:00:06.9]} 37. Rd3 {[%clk 0:00:08]} 37... Nb6
{[%clk 0:00:07.6]} 38. h3 {[%clk 0:00:07.8]} 38... Nc4 {[%clk 0:00:08.4]} 39.
Kh2 {[%clk 0:00:08.4]} 39... Qb6 {[%clk 0:00:09.7]} 40. Nc1 {[%clk 0:00:08.8]}
40... Nc5 {[%clk 0:00:10.9]} 41. Qc2 {[%clk 0:00:09.3]} 41... Nxd3 {[%clk
0:00:12.8]} 42. Qxd3 {[%clk 0:00:10.4]} 42... Na3 {[%clk 0:00:11.8]} 43. Nce2
{[%clk 0:00:11]} 43... Rb8 {[%clk 0:00:11.1]} 44. h4 {[%clk 0:00:12]} 44... Nxb5
{[%clk 0:00:11.5]} 45. h5 {[%clk 0:00:12.2]} 45... Nxd4 {[%clk 0:00:12.2]} 46.
Nxd4 {[%clk 0:00:13.5]} 46... Rc8 {[%clk 0:00:10.4]} 47. Qg3 {[%clk 0:00:13.6]}
47... Qc5 {[%clk 0:00:08.6]} 48. Ne2 {[%clk 0:00:13.7]} 48... Qe7 {[%clk
0:00:08.5]} 49. h6 {[%clk 0:00:14]} 49... Rc4 {[%clk 0:00:09.2]} 50. Qg4 {[%clk
0:00:14.2]} 50... Re4 {[%clk 0:00:09.5]} 51. Ng3 {[%clk 0:00:13]} 51... Re3
{[%clk 0:00:05.5]} 52. Nh5 {[%clk 0:00:13.6]} 52... Rxc3 {[%clk 0:00:04.2]} 53.
Nf6+ {[%clk 0:00:14.2]} 53... Kh8 {[%clk 0:00:05.7]} 54. Qd1 {[%clk 0:00:13.3]}
54... Rc8 {[%clk 0:00:06.7]} 55. Qa4 {[%clk 0:00:13.8]} 55... Rd8 {[%clk
0:00:07.8]} 56. Qd4 {[%clk 0:00:14.2]} 56... Qf8 {[%clk 0:00:07.4]} 57. Ng4
{[%clk 0:00:14.8]} 57... Rc8 {[%clk 0:00:06.1]} 58. Qa7 {[%clk 0:00:15]} 58...
Ra8 {[%clk 0:00:04.9]} 59. Qb7 {[%clk 0:00:15.5]} 59... Rd8 {[%clk 0:00:06.6]}
60. Qa6 {[%clk 0:00:09.3]} 60... d4 {[%clk 0:00:07.4]} 61. Qd3 {[%clk
0:00:10.3]} 61... Qe7 {[%clk 0:00:06.4]} 62. Kh3 {[%clk 0:00:10.9]} 62... Qa7
{[%clk 0:00:05.9]} 63. Nf6 {[%clk 0:00:09.4]} 63... Qc5 {[%clk 0:00:06.2]} 64.
Ne4 {[%clk 0:00:10.2]} 64... Qc6 {[%clk 0:00:05.9]} 65. Kg4 {[%clk 0:00:10.2]}
65... Qd5 {[%clk 0:00:06.6]} 66. Nd6 {[%clk 0:00:10.9]} 66... Qxg2+ {[%clk
0:00:07.4]} 67. Kh4 {[%clk 0:00:11.7]} 67... Qh2+ {[%clk 0:00:08.3]} 68. Kg4
{[%clk 0:00:12.8]} 68... Qh5+ {[%clk 0:00:08.6]} 69. Kg3 {[%clk 0:00:13.2]}
69... Rf8 {[%clk 0:00:09.5]} 70. Qxd4 {[%clk 0:00:13.5]} 70... Qxh6 {[%clk
0:00:09.6]} 71. Qa7 {[%clk 0:00:14.4]} 71... Qg7 {[%clk 0:00:09.9]} 72. Qe7
{[%clk 0:00:14.9]} 72... Kg8 {[%clk 0:00:09.5]} 73. Ne8 {[%clk 0:00:15.6]} 73...
Rxe8 {[%clk 0:00:08.7]} 74. Qxe8+ {[%clk 0:00:16.4]} 74... Qf8 {[%clk
0:00:10.6]} 75. Qd7 {[%clk 0:00:17.6]} 75... Kg7 {[%clk 0:00:10.3]} 76. Qc7
{[%clk 0:00:17.1]} 76... h6 {[%clk 0:00:11.4]} 77. Kg4 {[%clk 0:00:17.5]} 77...
Qe8 {[%clk 0:00:12.3]} 78. Qc5 {[%clk 0:00:17.1]} 78... Qd8 {[%clk 0:00:12.4]}
79. Qa3 {[%clk 0:00:17.2]} 79... g5 {[%clk 0:00:12.9]} 80. Qb4 {[%clk
0:00:15.7]} 80... gxf4 {[%clk 0:00:13.1]} 81. Qxf4 {[%clk 0:00:14]} 81... Qe7
{[%clk 0:00:11.2]} 82. Kh5 {[%clk 0:00:10.9]} 82... Qg5+ {[%clk 0:00:07.1]} 83.
Qxg5+ {[%clk 0:00:11.8]} 83... hxg5 {[%clk 0:00:08.3]} 84. Kxg5 {[%clk
0:00:13.2]} 84... Kg8 {[%clk 0:00:08.3]} 85. Kh6 {[%clk 0:00:11]} 85... Kh8
{[%clk 0:00:08.8]} 86. Kh5 {[%clk 0:00:11.3]} 86... Kh7 {[%clk 0:00:09.3]} 87.
Kg5 {[%clk 0:00:11.5]} 87... Kg7 {[%clk 0:00:10.7]} 88. Kh5 {[%clk 0:00:11.8]}
88... f6 {[%clk 0:00:11.8]} 89. exf6+ {[%clk 0:00:08.2]} 89... Kxf6 {[%clk
0:00:13.7]} 90. Kg4 {[%clk 0:00:09]} 90... Ke5 {[%clk 0:00:15.2]} 91. Kf3 {[%clk
0:00:10]} 91... Kd4 {[%clk 0:00:16.7]} 92. Kf2 {[%clk 0:00:09.4]} 92... Kd3
{[%clk 0:00:16.6]} 0-1

[Event "*** Titled Tuesday Blitz"]
[Site "Chess.com"]
[Date "2019.07.02"]
[Round "10"]
[White "Hikaru"]
[Black "Padenie_Zvezd"]
[Result "1/2-1/2"]
[WhiteElo "3145"]
[BlackElo "2759"]
[TimeControl "180+2"]
[EndTime "15:18:37 PDT"]
[Termination "Game drawn by agreement"]

1. Nf3 {[%clk 0:03:01.9]} 1... Nf6 {[%clk 0:03:00.5]} 2. b3 {[%clk 0:03:02.6]}
2... g6 {[%clk 0:03:00]} 3. Bb2 {[%clk 0:03:02.5]} 3... Bg7 {[%clk 0:03:01.9]}
4. d4 {[%clk 0:03:03.3]} 4... O-O {[%clk 0:03:02.7]} 5. e3 {[%clk 0:03:04.7]}
5... b6 {[%clk 0:03:01.6]} 6. c4 {[%clk 0:03:05.4]} 6... Bb7 {[%clk 0:03:03]} 7.
Qc2 {[%clk 0:03:07]} 7... d6 {[%clk 0:03:01.6]} 8. Nc3 {[%clk 0:03:08.3]} 8...
Nbd7 {[%clk 0:03:02.9]} 9. Rd1 {[%clk 0:03:09.6]} 9... Qe8 {[%clk 0:02:56.8]}
10. Be2 {[%clk 0:03:07.7]} 10... e5 {[%clk 0:02:33.7]} 11. dxe5 {[%clk 0:03:04]}
11... Nxe5 {[%clk 0:02:35.6]} 12. Nxe5 {[%clk 0:02:56.3]} 12... dxe5 {[%clk
0:02:37.5]} 13. Nd5 {[%clk 0:02:36.7]} 13... Rd8 {[%clk 0:02:15]} 14. Ba3 {[%clk
0:02:21.3]} 14... c5 {[%clk 0:02:15]} 15. e4 {[%clk 0:02:22.6]} 15... Bxd5
{[%clk 0:02:09.5]} 16. cxd5 {[%clk 0:02:19.8]} 16... Qd7 {[%clk 0:02:04.9]} 17.
O-O {[%clk 0:02:11.6]} 17... a5 {[%clk 0:02:05.7]} 18. Bb2 {[%clk 0:02:08.9]}
18... Ne8 {[%clk 0:02:06.1]} 19. f4 {[%clk 0:02:01.6]} 19... exf4 {[%clk
0:02:02.6]} 20. Bxg7 {[%clk 0:01:55.5]} 20... Nxg7 {[%clk 0:02:04.5]} 21. Rxf4
{[%clk 0:01:53.8]} 21... Qd6 {[%clk 0:02:04]} 22. Rf2 {[%clk 0:01:25.8]} 22...
f5 {[%clk 0:01:55.9]} 23. Bd3 {[%clk 0:01:22.3]} 23... fxe4 {[%clk 0:01:54.2]}
24. Bxe4 {[%clk 0:01:24.2]} 24... Rxf2 {[%clk 0:01:45.1]} 25. Qxf2 {[%clk
0:01:26.1]} 25... Rf8 {[%clk 0:01:43.1]} 26. Qg3 {[%clk 0:01:26.9]} 26... Ne8
{[%clk 0:01:32.7]} 27. Qc3 {[%clk 0:01:20.1]} 27... Nf6 {[%clk 0:01:28]} 28. Bf3
{[%clk 0:01:20.9]} 28... Re8 {[%clk 0:01:28.7]} 29. h3 {[%clk 0:01:22.5]} 29...
Kg7 {[%clk 0:01:24.2]} 30. Rf1 {[%clk 0:01:22.7]} 30... Qe5 {[%clk 0:01:21.6]}
31. Qxe5 {[%clk 0:01:19.7]} 31... Rxe5 {[%clk 0:01:23.5]} 32. d6 {[%clk
0:01:21.6]} 32... Re8 {[%clk 0:01:17.1]} 33. g4 {[%clk 0:01:15.4]} 33... h6
{[%clk 0:01:04.7]} 34. h4 {[%clk 0:01:14.7]} 34... Rd8 {[%clk 0:01:05.1]} 35.
Rd1 {[%clk 0:01:14.4]} 35... Kf7 {[%clk 0:00:58.1]} 36. g5 {[%clk 0:01:15.6]}
36... hxg5 {[%clk 0:00:57]} 37. hxg5 {[%clk 0:01:16.8]} 37... Nh7 {[%clk
0:00:57.5]} 38. Bd5+ {[%clk 0:01:16.9]} 38... Kg7 {[%clk 0:00:56.7]} 39. Bc6
{[%clk 0:01:17.9]} 39... Nxg5 {[%clk 0:00:57.2]} 40. d7 {[%clk 0:01:19.5]} 40...
Kf6 {[%clk 0:00:57.8]} 41. Rd6+ {[%clk 0:01:17.2]} 41... Kf5 {[%clk 0:00:42]}
42. Bb5 {[%clk 0:01:14.5]} 42... Nf3+ {[%clk 0:00:38.2]} 43. Kf2 {[%clk
0:01:14.2]} 43... Nd4 {[%clk 0:00:38.4]} 44. Bd3+ {[%clk 0:01:12.7]} 44... Ke5
{[%clk 0:00:39.3]} 45. Rxb6 {[%clk 0:01:08.4]} 45... Rxd7 {[%clk 0:00:40.5]} 46.
Bxg6 {[%clk 0:01:09.7]} 46... Ra7 {[%clk 0:00:38.1]} 47. Be8 {[%clk 0:01:08.8]}
47... Ra8 {[%clk 0:00:38.4]} 48. Ba4 {[%clk 0:01:02.8]} 48... Rf8+ {[%clk
0:00:39.4]} 49. Ke1 {[%clk 0:01:04.4]} 49... Ke4 {[%clk 0:00:39.4]} 50. Rh6
{[%clk 0:01:02.6]} 50... Kd3 {[%clk 0:00:38.2]} 51. Rh3+ {[%clk 0:01:03.3]}
51... Kc2 {[%clk 0:00:39.6]} 52. b4+ {[%clk 0:01:04.2]} 52... Kb2 {[%clk
0:00:34.8]} 53. bxc5 {[%clk 0:01:05.1]} 53... Nf3+ {[%clk 0:00:35.1]} 54. Rxf3
{[%clk 0:00:56.2]} 54... Rxf3 {[%clk 0:00:37]} 55. Bb3 {[%clk 0:00:43.3]} 55...
Rc3 {[%clk 0:00:34.3]} 56. Kd2 {[%clk 0:00:44.4]} 56... Rxc5 {[%clk 0:00:35.5]}
57. Bg8 {[%clk 0:00:46.3]} 57... Rc8 {[%clk 0:00:34.2]} 58. Bf7 {[%clk
0:00:46.4]} 58... Rf8 {[%clk 0:00:35]} 59. Bc4 {[%clk 0:00:46.7]} 59... Rd8+
{[%clk 0:00:35.4]} 60. Ke2 {[%clk 0:00:46.2]} 60... a4 {[%clk 0:00:35.8]} 61.
Bf7 {[%clk 0:00:46.1]} 61... Rd7 {[%clk 0:00:32.5]} 62. Bc4 {[%clk 0:00:46.3]}
62... a3 {[%clk 0:00:33.1]} 63. Bg8 {[%clk 0:00:47.4]} 63... Kc1 {[%clk
0:00:32]} 64. Bb3 {[%clk 0:00:46.8]} 64... Rd2+ {[%clk 0:00:32.7]} 65. Ke3
{[%clk 0:00:48.1]} 65... Rb2 {[%clk 0:00:32.7]} 66. Bg8 {[%clk 0:00:49.2]} 66...
Rd2 {[%clk 0:00:33.8]} 67. Bb3 {[%clk 0:00:49.6]} 67... Rh2 {[%clk 0:00:33.9]}
68. Bf7 {[%clk 0:00:49.2]} 68... Rh3+ {[%clk 0:00:30.7]} 69. Ke2 {[%clk
0:00:48.1]} 69... Kc2 {[%clk 0:00:25.4]} 70. Bg6+ {[%clk 0:00:47.4]} 70... Kc3
{[%clk 0:00:23.6]} 71. Bf7 {[%clk 0:00:49.3]} 71... Rh2+ {[%clk 0:00:23.8]} 72.
Kd1 {[%clk 0:00:48.1]} 72... Rf2 {[%clk 0:00:21.8]} 73. Bg8 {[%clk 0:00:47.4]}
73... Rf8 {[%clk 0:00:20.8]} 74. Bb3 {[%clk 0:00:44.4]} 74... Rb8 {[%clk
0:00:16.9]} 75. Bf7 {[%clk 0:00:43.9]} 75... Rb1+ {[%clk 0:00:16.4]} 76. Ke2
{[%clk 0:00:44.9]} 76... Rb7 {[%clk 0:00:18.3]} 77. Bg8 {[%clk 0:00:45.3]} 77...
Rd7 {[%clk 0:00:17.7]} 78. Bb3 {[%clk 0:00:45.1]} 78... Rd8 {[%clk 0:00:17]} 79.
Bf7 {[%clk 0:00:45.3]} 79... Kc2 {[%clk 0:00:17.3]} 80. Bb3+ {[%clk 0:00:45.9]}
80... Kc1 {[%clk 0:00:18.2]} 81. Bf7 {[%clk 0:00:47.2]} 81... Rh8 {[%clk
0:00:13.3]} 82. Bc4 {[%clk 0:00:44]} 82... Kb1 {[%clk 0:00:10]} 83. Bf7 {[%clk
0:00:42.6]} 83... Rf8 {[%clk 0:00:10.7]} 84. Bc4 {[%clk 0:00:41.6]} 84... Rc8
{[%clk 0:00:11.2]} 85. Bf7 {[%clk 0:00:42.5]} 85... Rc3 {[%clk 0:00:10.8]} 86.
Kd2 {[%clk 0:00:42.5]} 86... Rf3 {[%clk 0:00:10.2]} 87. Bd5 {[%clk 0:00:43.2]}
87... Rf2+ {[%clk 0:00:11.3]} 88. Kc3 {[%clk 0:00:41]} 88... Rc2+ {[%clk
0:00:09.1]} 89. Kd3 {[%clk 0:00:41.1]} 89... Kc1 {[%clk 0:00:07.9]} 90. Bb3
{[%clk 0:00:40.5]} 90... Rg2 {[%clk 0:00:08.1]} 91. Bf7 {[%clk 0:00:39.3]} 91...
Kb1 {[%clk 0:00:08.5]} 92. Bd5 {[%clk 0:00:39.4]} 92... Rg1 {[%clk 0:00:07.5]}
93. Kc3 {[%clk 0:00:38.3]} 93... Rg3+ {[%clk 0:00:07.7]} 94. Kd2 {[%clk
0:00:39.5]} 94... Rg7 {[%clk 0:00:08.5]} 95. Bb3 {[%clk 0:00:39.7]} 95... Rc7
{[%clk 0:00:06.8]} 96. Bg8 {[%clk 0:00:39]} 96... Rc8 {[%clk 0:00:07.4]} 97. Bf7
{[%clk 0:00:38.8]} 97... Rc2+ {[%clk 0:00:07.5]} 98. Kd3 {[%clk 0:00:38.5]}
98... Rf2 {[%clk 0:00:08.4]} 99. Bg8 {[%clk 0:00:38.5]} 99... Kc1 {[%clk
0:00:09.7]} 1/2-1/2